bitfinex/quotes_ETHUSD_20240709
["timestamp","ask_amount","ask_price","bid_price","bid_amount"]
[1720559392558,1.2333654,3074.6,3073.9,0.29165635]
[1720559392761,1.2333654,3074.5,3073.9,0.29165635]
[1720559392973,1.2333654,3074.4,3073.8,0.6177635]
[1720559393173,1.12719186,3074.3,3073.7,2.2988]
[1720559393387,1.69631279,3074.7,3073.7,2.2988]
[1720559393606,2.4208,3074.5,3073.7,2.2988]
[1720559393772,1.23337541,3074.4,3073.8,0.2924165]
[1720559394090,1.12719421,3074.3,3073.8,0.2924165]
[1720559394255,2.4208,3074.5,3073.8,0.2924165]
[1720559394460,1.23337624,3074.4,3073.8,0.2924165]
[1720559394667,1.12719317,3074.3,3073.8,0.2924165]
[1720559394955,2.4208,3074.5,3073.8,0.2924165]
[1720559395299,1.23338116,3074.4,3073.8,0.2924165]
[1720559395462,1.1271969,3074.4,3073.8,0.2924165]
[1720559395790,1.1271969,3074.3,3073.8,0.2924165]
[1720559396092,2.4208,3074.5,3073.8,0.2924165]
[1720559396273,1.12718919,3074.4,3073.8,0.2924165]
[1720559396596,1.12718919,3074.3,3073.9,0.25912165]
[1720559396778,1.12718919,3074.4,3073.9,0.25912165]
[1720559396956,1.12718919,3074.3,3073.9,0.25912165]
[1720559397156,2.4208,3074.5,3073.9,0.25912165]
[1720559397356,1.12718977,3074.4,3073.9,0.25912165]
[1720559397562,1.12718977,3074.3,3073.9,0.25912165]
[1720559397765,1.12718977,3074.4,3073.7,2.2988]
[1720559398100,1.1271902,3074.3,3073.7,2.2988]
[1720559398269,2.4208,3074.5,3073.7,3.2165755]
[1720559398475,1.12719122,3074.4,3073.7,3.2165755]
[1720559398698,1.12719122,3074.3,3073.7,3.2165755]
[1720559398895,2.4208,3074.5,3073.7,3.2165755]
[1720559399087,1.12719072,3074.4,3073.8,0.32165755]
[1720559399286,1.12719072,3074.3,3073.8,0.32165755]
[1720559399599,2.4208,3074.5,3073.8,0.32165755]
[1720559399771,1.12718969,3074.4,3073.8,0.32165755]
[1720559399978,1.12718969,3074.3,3073.8,0.32165755]
[1720559400177,1.12718969,3074.4,3073.9,0.35382331]
[1720559400402,1.12718969,3074.4,3073.7,3.2165755]
[1720559400598,1.12719047,3074.3,3073.7,3.2165755]
[1720559400898,2.4208,3074.5,3073.7,3.2165755]
[1720559401090,1.12719006,3074.4,3073.8,0.32165755]
[1720559401285,1.12719006,3074.3,3073.8,0.32165755]
[1720559401491,0.55,3074.6,3073.8,0.32165755]
[1720559401785,1.23338997,3074.5,3073.8,0.32165755]
[1720559402100,1.12718995,3074.4,3073.9,0.35382331]
[1720559402272,1.12718995,3074.4,3073.8,0.32165755]
[1720559402477,1.12718995,3074.3,3073.8,0.32165755]
[1720559402685,1.12718995,3074.2,3073.8,0.32165755]
[1720559402866,1.12718995,3074.6,3073.8,0.32165755]
[1720559403069,0.55,3074.7,3073.8,0.32165755]
[1720559403381,1.23341051,3074.6,3073.9,0.35382331]
[1720559403585,1.23340984,3074.5,3073.9,0.35382331]
[1720559403896,1.12718909,3074.4,3073.9,0.35382331]
[1720559404078,1.12718909,3074.6,3073.8,0.32165755]
[1720559404281,1.23340954,3074.5,3073.8,0.32165755]
[1720559404466,1.12718909,3074.4,3073.8,0.32165755]
[1720559404667,1.12718909,3074.6,3073.8,0.32165755]
[1720559404896,1.57066054,3074.5,3073.7,2.2988]
[1720559405097,1.12718909,3074.4,3073.7,2.2988]
[1720559405266,1.12718909,3074.6,3073.7,2.2988]
[1720559405466,0.10618453,3074.5,3073.7,2.2988]
[1720559405665,1.12718909,3074.4,3073.7,2.2988]
[1720559406106,1.12718909,3074.5,3073.7,2.2988]
[1720559406400,2.24564977,3074.7,3073.8,0.22988]
[1720559406599,1.23337781,3074.6,3073.8,0.22988]
[1720559406902,1.23337781,3074.5,3073.8,0.22988]
[1720559407199,1.12719622,3074.4,3073.8,0.22988]
[1720559407502,1.12719622,3074.3,3073.9,0.252868]
[1720559407704,1.12719622,3074.2,3073.7,2.2988]
[1720559407905,1.12719622,3074.1,3073.7,2.2988]
[1720559408106,1.12719622,3074.0,3073.7,2.2988]
[1720559408272,1.12719622,3073.9,3073.8,0.22988]
[1720559408469,1.12719622,3073.9,3073.7,2.2988]
[1720559408704,1.12719622,3073.8,3073.7,2.2988]
[1720559409801,2.24564977,3074.7,3073.7,2.2988]
[1720559409802,0.55,3074.7,3073.7,2.2988]
[1720559409984,1.23339571,3074.6,3073.7,2.2988]
[1720559410182,1.23339571,3074.5,3073.7,2.2988]
[1720559410383,1.12719385,3074.4,3073.7,3.479387]
[1720559410701,1.12719385,3074.3,3073.7,3.479387]
[1720559410900,1.12719385,3074.2,3073.7,3.479387]
[1720559411206,1.12719385,3074.1,3073.8,0.4447737]
[1720559411403,1.12719385,3074.0,3073.8,0.4447737]
[1720559411575,1.12719385,3073.9,3073.7,3.479387]
[1720559411773,1.12719385,3073.8,3073.7,3.479387]
[1720559412034,1.12719385,3073.8,3073.7,2.2988]
[1720559413294,0.55,3074.7,3073.7,2.2988]
[1720559413612,1.23339208,3074.6,3073.7,2.2988]
[1720559413767,2.24632103,3074.7,3073.7,2.2988]
[1720559413969,1.23338661,3074.6,3073.7,2.2988]
[1720559414186,1.23338661,3074.5,3073.8,0.48299492]
[1720559414403,1.23338661,3074.4,3073.8,0.48299492]
[1720559414604,1.12719144,3074.3,3073.7,2.2988]
[1720559414909,1.12719144,3074.2,3073.7,2.2988]
[1720559415070,1.12719144,3074.5,3073.7,2.2988]
[1720559415405,1.23340847,3074.4,3073.8,0.555231]
[1720559415610,1.23340776,3074.3,3073.8,0.555231]
[1720559415811,1.12719144,3074.2,3073.8,0.555231]
[1720559416012,1.12719144,3074.1,3073.7,2.2988]
[1720559416316,2.24632103,3074.7,3073.7,2.2988]
[1720559416317,1.12719144,3074.0,3073.7,2.2988]
[1720559416513,1.12719144,3073.9,3073.7,2.2988]
[1720559416812,1.69775158,3074.9,3073.9,2.4699]
[1720559417112,2.93105096,3074.8,3073.9,5.72309]
[1720559417299,1.23329938,3074.7,3073.9,5.72309]
[1720559417501,1.23329938,3074.6,3074.0,0.572309]
[1720559417807,1.23329938,3074.5,3074.0,0.572309]
[1720559418012,1.12707917,3074.4,3074.0,0.572309]
[1720559418212,1.12707917,3074.3,3074.1,0.6295399]
[1720559418379,1.12707917,3074.2,3073.9,5.72309]
[1720559418585,1.12707917,3074.1,3073.9,5.72309]
[1720559418816,1.12707917,3074.0,3073.9,5.72309]
[1720559419912,1.69775158,3074.7,3073.9,5.72309]
[1720559420088,1.23328481,3074.6,3073.9,8.97623]
[1720559420294,1.23328481,3074.5,3073.9,8.97623]
[1720559420523,1.23328481,3074.4,3073.9,5.72304]
[1720559420689,1.23328481,3074.3,3074.0,0.572304]
[1720559420884,1.12706471,3074.2,3074.0,0.572304]
[1720559421115,1.12706471,3074.1,3074.0,0.572304]
[1720559421303,1.12706471,3074.1,3073.9,5.72304]
[1720559421618,1.12706471,3074.0,3073.9,5.72304]
[1720559423425,1.23332293,3074.0,3073.9,5.72304]
[1720559423917,1.2333246,3074.0,3073.9,5.72304]
[1720559424108,1.2333246,3074.0,3073.9,6.620676]
[1720559426691,2.3006,3075.0,3073.9,6.620676]
[1720559426925,1.70629049,3074.2,3073.9,6.620676]
[1720559427086,0.10625831,3074.1,3073.9,8.97618]
[1720559427432,1.23331793,3074.1,3073.9,8.97618]
[1720559427608,1.70629049,3074.2,3074.0,3.25309]
[1720559427809,1.23330587,3074.1,3074.0,3.25309]
[1720559428015,1.23330587,3074.1,3074.0,3.825389]
[1720559429027,1.23330587,3074.1,3074.0,0.572299]
[1720559429396,2.93959636,3074.1,3074.0,0.572299]
[1720559429721,1.23330587,3074.1,3074.0,0.572299]
[1720559430121,2.4536,3074.5,3074.0,0.572299]
[1720559430326,1.70608023,3074.1,3074.0,0.572299]
[1720559430502,2.9394209,3074.1,3074.0,0.572299]
[1720559433541,1.81221974,3074.1,3073.6,2.919856]
[1720559433748,2.93930596,3074.0,3073.6,2.919856]
[1720559433948,1.23336,3073.9,3073.6,2.919856]
[1720559434143,1.23337676,3073.8,3073.7,0.9173456]
[1720559434850,1.23337262,3073.8,3073.7,0.9173456]
[1720559436151,1.23337262,3073.8,3073.5,3.0]
[1720559436333,1.23337262,3073.8,3073.4,2.3757]
[1720559436334,1.23337262,3073.7,3073.4,5.3757]
[1720559436535,1.23337262,3073.6,3073.4,5.3757]
[1720559436739,1.23337262,3073.5,3073.4,5.3757]
[1720559436959,1.23351244,3073.5,3073.4,3.238662]
[1720559437116,1.23351244,3073.5,3073.4,6.238662]
[1720559440446,1.23351451,3073.5,3073.4,6.238662]
[1720559441016,1.23351451,3073.5,3073.0,2.3827]
[1720559441220,1.23351451,3073.4,3073.0,2.3827]
[1720559441451,1.23351451,3073.3,3073.0,2.3827]
[1720559441745,1.23351451,3073.2,3073.0,2.3827]
[1720559441947,1.7063757,3073.4,3073.1,0.99664973]
[1720559442132,1.23364165,3073.3,3073.1,0.99664973]
[1720559442323,1.23364165,3073.2,3072.9,7.5837973]
[1720559442528,0.10627981,3073.1,3073.0,3.0]
[1720559442753,0.10627981,3073.1,3072.9,0.1137973]
[1720559443052,2.83374677,3073.4,3072.9,0.1137973]
[1720559443053,0.10627981,3073.0,3072.9,0.1137973]
[1720559443419,0.10627981,3073.3,3072.9,0.1137973]
[1720559443735,2.2618,3073.6,3072.9,0.1137973]
[1720559443736,1.23364734,3073.2,3072.9,0.35633703]
[1720559443937,0.10627565,3073.1,3072.9,0.1137973]
[1720559444127,1.70500492,3073.5,3072.9,0.1137973]
[1720559444452,1.23365371,3073.4,3072.9,0.1137973]
[1720559444656,1.23365371,3073.3,3072.9,0.1137973]
[1720559444822,1.23365371,3073.2,3072.9,0.1137973]
[1720559445019,0.10628094,3073.1,3072.9,0.1137973]
[1720559445220,1.70500492,3073.5,3072.9,0.1137973]
[1720559445432,1.23364521,3073.4,3072.9,0.1137973]
[1720559445758,1.23364521,3073.3,3072.9,0.1137973]
[1720559445913,1.23364521,3073.2,3072.9,0.1137973]
[1720559446113,0.10627963,3073.1,3072.9,0.35633703]
[1720559446313,1.70500492,3073.5,3072.9,0.35633703]
[1720559446858,1.2336483,3073.4,3072.9,0.35633703]
[1720559447031,1.2336486,3073.3,3072.9,0.35633703]
[1720559447230,1.2336486,3073.2,3072.9,0.35633703]
[1720559447442,1.23373289,3073.1,3072.9,0.1137973]
[1720559447756,1.23373289,3073.0,3072.9,0.1137973]
[1720559448053,2.93726785,3073.0,3072.9,0.1137973]
[1720559448439,1.23373289,3073.0,3072.9,0.1137973]
[1720559449580,5.92126464,3073.0,3072.9,0.1137973]
[1720559449723,4.77598818,3073.0,3072.9,0.1137973]
[1720559450333,4.77621389,3073.0,3072.9,0.1137973]
[1720559450750,5.38095261,3073.0,3072.9,0.1137973]
[1720559450960,3.67966235,3073.0,3072.9,0.1137973]
[1720559451262,5.38100533,3073.0,3072.9,0.1137973]
[1720559451470,5.38023939,3073.0,3072.9,0.1137973]
[1720559451671,5.91826333,3073.0,3072.9,0.1137973]
[1720559452035,4.21767748,3073.0,3072.9,0.1137973]
[1720559453479,3.67965354,3073.0,3072.9,0.1137973]
[1720559453637,3.67955206,3073.0,3072.9,0.1137973]
[1720559454084,2.4457,3073.0,3072.9,0.1137973]
[1720559454240,3.67957699,3073.0,3072.9,0.1137973]
[1720559454741,3.67958284,3073.0,3072.9,0.1137973]
[1720559454959,3.6795701,3073.0,3072.9,0.1137973]
[1720559456771,3.67956939,3073.0,3072.9,0.1137973]
[1720559456978,3.57334056,3073.0,3072.9,0.1137973]
[1720559457275,3.67956752,3073.0,3072.9,0.1137973]
[1720559457577,3.57333923,3073.0,3072.9,0.1137973]
[1720559457740,3.67956754,3073.0,3072.9,0.1137973]
[1720559457943,3.57333923,3073.0,3072.9,0.1137973]
[1720559458270,3.67956476,3073.0,3072.9,0.1137973]
[1720559460565,3.94132127,3073.0,3072.9,0.1137973]
[1720559460778,4.59757374,3073.0,3072.9,0.1137973]
[1720559462840,3.36365648,3073.0,3072.9,0.1137973]
[1720559463043,4.59764155,3073.0,3072.9,0.1137973]
[1720559463573,4.59764092,3073.0,3072.9,0.1137973]
[1720559464160,4.59766446,3073.0,3072.9,0.1137973]
[1720559466386,3.46990675,3073.0,3072.9,0.1137973]
[1720559466600,4.597666,3073.0,3072.9,0.1137973]
[1720559469786,3.46990606,3073.0,3072.9,0.1137973]
[1720559469969,4.59765733,3073.0,3072.9,0.1137973]
[1720559473145,3.36365648,3073.0,3072.9,0.1137973]
[1720559473378,4.59768942,3073.0,3072.9,0.1137973]
[1720559473569,3.36365648,3073.0,3072.9,0.1137973]
[1720559473877,4.59768896,3073.0,3072.9,0.1137973]
[1720559474392,4.5976876,3073.0,3072.9,0.1137973]
[1720559476568,4.5976919,3073.0,3072.9,0.1137973]
[1720559479294,1.23403542,3073.0,3072.9,0.1137973]
[1720559479889,1.12774941,3073.0,3072.9,0.1137973]
[1720559480093,1.23399506,3073.0,3072.9,0.1137973]
[1720559480565,2.93297652,3073.0,3072.9,0.1137973]
[1720559481461,1.23399506,3073.0,3072.9,0.1137973]
[1720559483094,2.35940234,3073.0,3072.9,0.1137973]
[1720559483301,2.35948299,3073.0,3072.9,0.1137973]
[1720559483501,4.39982031,3073.0,3072.9,0.1137973]
[1720559483660,1.12540728,3073.0,3072.9,0.1137973]
[1720559483863,4.40024182,3073.0,3072.9,0.1137973]
[1720559484571,4.40071086,3073.0,3072.9,0.1137973]
[1720559485563,4.40125964,3073.0,3072.9,0.1137973]
[1720559486598,1.12540728,3073.0,3072.9,0.1137973]
[1720559486766,4.40128747,3073.0,3072.9,0.1137973]
[1720559487373,2.35940718,3073.0,3072.9,0.1137973]
[1720559489289,4.74148232,3073.0,3072.9,0.1137973]
[1720559489483,7.74148232,3073.0,3072.9,0.1137973]
[1720559490007,5.3594543,3073.0,3072.9,0.1137973]
[1720559490208,5.35947269,3073.0,3072.9,0.1137973]
[1720559491409,8.17529176,3073.0,3072.9,0.1137973]
[1720559491578,5.35947269,3073.0,3072.9,0.1137973]
[1720559491978,8.17529176,3073.0,3072.9,0.1137973]
[1720559493505,5.35952929,3073.0,3072.9,0.1137973]
[1720559493729,4.12540728,3073.0,3072.9,0.1137973]
[1720559493883,8.17818821,3073.0,3072.9,0.1137973]
[1720559494401,5.35953667,3073.0,3072.9,0.1137973]
[1720559496588,4.12540728,3073.0,3072.9,0.1137973]
[1720559496788,8.17883606,3073.0,3072.9,0.1137973]
[1720559497914,5.35949913,3073.0,3072.9,0.1137973]
[1720559498430,8.79049913,3073.0,3072.0,7.47]
[1720559498581,8.79049913,3073.0,3071.8,2.3312]
[1720559498582,2.04566779,3072.1,3071.8,2.3312]
[1720559498916,3.27975964,3072.0,3071.8,2.3312]
[1720559499120,3.27975964,3071.9,3071.8,2.3312]
[1720559499718,1.23409185,3071.9,3071.8,2.3312]
[1720559499931,1.1280538,3071.9,3071.8,2.3312]
[1720559500236,1.23431534,3071.9,3071.8,2.3312]
[1720559503225,3.0,3072.4,3071.8,2.3312]
[1720559503463,2.04447168,3072.0,3071.8,2.3312]
[1720559503754,1.23435151,3071.9,3071.8,2.3312]
[1720559504034,1.23432541,3071.9,3071.8,2.3312]
[1720559504601,1.23433621,3071.9,3071.8,2.3312]
[1720559506808,1.09197,3072.3,3071.8,2.3312]
[1720559507014,2.04369752,3072.0,3071.8,2.3312]
[1720559507226,1.23436524,3071.9,3071.8,2.3312]
[1720559509995,1.23436077,3071.9,3071.8,2.3312]
[1720559510196,1.23436063,3071.9,3071.8,2.3312]
[1720559511530,1.23436063,3071.9,3071.5,9.8802]
[1720559511700,2.93613208,3071.8,3071.5,9.8802]
[1720559511901,2.04271251,3072.0,3071.5,9.8802]
[1720559511902,2.93613208,3071.7,3071.5,9.8802]
[1720559512121,1.23436063,3071.6,3071.5,7.47]
[1720559512502,1.23436063,3071.6,3071.3,2.4102]
[1720559512700,1.23436063,3071.5,3071.3,2.4102]
[1720559512936,1.23436063,3071.4,3071.3,2.4102]
[1720559513300,2.2502,3072.1,3071.3,2.4102]
[1720559513497,1.70157645,3071.7,3071.3,2.4102]
[1720559513730,1.2343873,3071.6,3071.3,2.4102]
[1720559513906,1.23440535,3071.5,3071.3,2.4102]
[1720559514119,1.23440535,3071.4,3071.3,2.4102]
[1720559514706,1.23439955,3071.4,3071.3,2.4102]
[1720559514918,1.23439807,3071.4,3071.3,2.4102]
[1720559515223,1.23439807,3071.4,3071.0,2.2604]
[1720559515419,1.23439807,3071.3,3071.0,2.2604]
[1720559515744,2.475,3071.7,3071.0,2.2604]
[1720559515745,1.23439807,3071.2,3071.0,2.2604]
[1720559516160,1.23439807,3071.1,3071.0,2.2604]
[1720559516816,0.17011346,3071.6,3071.0,2.2604]
[1720559517144,1.7004323,3071.4,3071.0,2.2604]
[1720559517432,3.48495787,3071.3,3070.5,2.274]
[1720559517634,1.23452557,3071.2,3070.5,2.274]
[1720559517953,1.23452557,3071.1,3070.5,2.274]
[1720559518256,1.23452557,3071.0,3070.5,2.274]
[1720559518455,1.12828729,3070.9,3070.5,2.274]
[1720559518666,1.12828729,3071.2,3070.5,2.274]
[1720559518838,1.23451519,3071.1,3070.5,2.5014]
[1720559519155,1.12828729,3071.0,3070.5,2.5014]
[1720559519314,1.12828729,3071.2,3070.5,2.5014]
[1720559519510,1.23450192,3071.1,3070.5,2.5014]
[1720559519746,1.12828729,3071.0,3070.5,2.5014]
[1720559519946,1.12828729,3071.2,3070.5,2.5014]
[1720559520253,0.10621346,3071.1,3070.5,2.274]
[1720559520421,1.23456145,3071.1,3070.5,2.274]
[1720559520862,1.69908182,3070.8,3069.9,2.3611]
[1720559521077,4.12936145,3071.0,3069.9,2.3611]
[1720559521078,1.69908182,3070.6,3069.9,2.3611]
[1720559521242,1.23456145,3070.5,3069.9,2.3611]
[1720559521441,5.03889818,3070.9,3069.9,2.3611]
[1720559521442,1.23456145,3070.4,3069.9,2.3611]
[1720559521750,1.12834799,3070.3,3069.9,2.3611]
[1720559521951,1.69908182,3070.6,3069.9,2.3611]
[1720559521952,1.12834799,3070.5,3069.9,2.3611]
[1720559522148,0.10618431,3070.4,3069.9,2.3611]
[1720559522338,1.12834799,3070.3,3069.9,2.3611]
[1720559522671,1.12863566,3070.2,3069.9,2.3611]
[1720559522872,1.12863566,3070.1,3069.9,2.3611]
[1720559523062,1.69677578,3070.7,3069.9,2.3611]
[1720559523259,1.78482334,3070.6,3069.9,2.3611]
[1720559523460,1.23482334,3070.5,3069.9,2.3611]
[1720559523658,1.67864145,3070.4,3069.9,2.3611]
[1720559523860,0.89816065,3070.6,3069.9,2.3611]
[1720559524068,1.2347932,3070.5,3069.9,2.3611]
[1720559524261,1.67861087,3070.4,3069.9,2.3611]
[1720559524466,1.12861087,3070.3,3069.9,2.3611]
[1720559524796,0.89816065,3070.6,3069.9,2.3611]
[1720559524976,1.12860778,3070.5,3069.9,2.3611]
[1720559525143,1.67860778,3070.4,3069.9,2.3611]
[1720559525346,1.12860778,3070.3,3069.9,2.3611]
[1720559525561,0.55,3070.6,3069.9,2.3611]
[1720559525778,1.12859119,3070.5,3069.9,2.3611]
[1720559525972,2.24678319,3070.8,3069.9,2.3611]
[1720559525973,0.55,3070.8,3069.9,2.3611]
[1720559526178,1.12860884,3070.4,3069.9,2.3611]
[1720559526352,1.12860884,3070.3,3069.9,2.3611]
[1720559526555,0.86777832,3070.7,3069.9,2.3611]
[1720559526772,1.78480196,3070.6,3069.9,2.3611]
[1720559526968,1.77184023,3070.5,3069.9,2.3611]
[1720559527276,1.67862463,3070.4,3069.9,2.3611]
[1720559527577,1.12862463,3070.3,3069.9,2.3611]
[1720559529183,1.12867036,3070.2,3069.9,2.3611]
[1720559529379,0.55,3070.4,3069.9,2.3611]
[1720559529697,1.12864467,3070.3,3069.9,2.3611]
[1720559529873,1.12864467,3070.2,3069.9,2.3611]
[1720559530187,0.55,3070.6,3069.9,2.3611]
[1720559530390,1.12865282,3070.5,3069.9,2.3611]
[1720559530593,1.67865282,3070.4,3069.9,2.3611]
[1720559530762,1.12865282,3070.3,3069.9,2.3611]
[1720559532458,0.55,3070.4,3069.9,2.3611]
[1720559532659,1.12866538,3070.3,3069.9,2.3611]
[1720559532859,0.55,3070.4,3069.9,2.3611]
[1720559533066,1.12866402,3070.3,3069.9,2.3611]
[1720559533374,0.55,3070.4,3069.9,2.3611]
[1720559533683,1.12866413,3070.3,3069.9,2.3611]
[1720559533996,0.86777832,3070.7,3069.9,2.3611]
[1720559534195,1.6786666,3070.6,3069.9,2.60858973]
[1720559534398,1.1286666,3070.5,3069.9,2.60858973]
[1720559534564,3.0,3071.1,3069.9,2.60858973]
[1720559534761,1.87781735,3071.0,3069.9,2.60858973]
[1720559534982,1.23471735,3070.9,3069.9,2.60858973]
[1720559535188,1.12853285,3070.8,3069.9,2.60858973]
[1720559535384,1.12853285,3070.9,3069.9,2.60858973]
[1720559535577,1.85569614,3070.8,3069.9,2.3611]
[1720559536068,1.12853603,3070.7,3069.9,2.3611]
[1720559536265,1.12853603,3070.6,3069.9,2.3611]
[1720559536471,1.12853603,3070.7,3069.9,2.3611]
[1720559536685,1.12853603,3070.6,3069.9,2.3611]
[1720559536887,1.12853603,3070.5,3069.9,2.3611]
[1720559537084,0.72716329,3070.8,3069.9,4.15643073]
[1720559537296,1.12850987,3070.7,3070.0,3.2573]
[1720559537479,1.12850987,3070.6,3070.1,2.263]
[1720559537674,3.0,3071.2,3070.1,2.263]
[1720559537875,0.65618923,3071.1,3070.1,2.263]
[1720559538094,0.55,3071.1,3070.1,2.263]
[1720559538275,1.12845866,3071.0,3070.1,2.263]
[1720559538685,1.12845866,3071.0,3070.3,3.25691]
[1720559538883,1.12845866,3071.4,3070.5,2.4993]
[1720559539074,1.12826678,3071.3,3070.9,2.4993]
[1720559539288,4.51907035,3072.2,3070.9,2.4993]
[1720559539289,1.12820906,3071.2,3071.0,0.575572]
[1720559539474,1.69415378,3072.1,3070.9,2.4993]
[1720559539681,1.23437647,3072.0,3070.9,5.75566]
[1720559539996,1.23437647,3071.9,3070.9,5.75566]
[1720559540194,1.12816302,3071.8,3070.9,5.75566]
[1720559540396,1.12816302,3071.7,3070.9,5.75566]
[1720559540601,1.12816302,3071.6,3070.9,5.75566]
[1720559540899,1.12816302,3071.5,3070.9,5.75566]
[1720559541101,1.12816302,3071.4,3070.9,5.75566]
[1720559541410,0.75989392,3072.0,3070.9,5.75566]
[1720559541573,1.23434644,3071.9,3070.9,5.75566]
[1720559541773,1.12813059,3071.8,3070.9,6.656867]
[1720559542501,1.1281281,3071.7,3070.9,6.656867]
[1720559542885,0.54123257,3071.9,3070.9,6.656867]
[1720559543095,1.23436598,3071.8,3070.9,3.400507]
[1720559543273,1.23436601,3071.7,3070.9,3.400507]
[1720559543482,1.12813188,3071.6,3071.0,0.6656917]
[1720559543903,1.12813188,3071.5,3071.0,0.6656917]
[1720559544109,0.54123257,3071.9,3071.0,0.6656917]
[1720559544110,1.12813188,3071.8,3071.0,0.6656917]
[1720559544314,1.12813188,3071.4,3070.9,5.75567]
[1720559544515,1.12813188,3071.3,3070.9,5.75567]
[1720559544916,3.54123257,3071.9,3070.9,5.75567]
[1720559545135,4.23439142,3071.8,3070.9,5.75567]
[1720559545276,1.23439142,3071.7,3070.9,6.656894]
[1720559545480,1.12816252,3071.6,3070.9,6.656894]
[1720559545792,3.0,3071.8,3070.9,6.656894]
[1720559546128,1.23439203,3071.7,3070.9,6.656894]
[1720559546423,1.12816396,3071.6,3070.9,6.656894]
[1720559546590,1.12816396,3071.5,3070.9,6.656894]
[1720559546994,1.12816396,3071.4,3070.9,6.656894]
[1720559547192,3.54123257,3071.9,3070.9,6.656894]
[1720559547398,1.58848246,3071.8,3070.9,6.656894]
[1720559547720,1.2343592,3071.7,3070.9,6.656894]
[1720559547936,1.12813035,3071.6,3070.9,6.656894]
[1720559548423,1.12813035,3071.5,3070.9,6.656894]
[1720559548724,1.12813035,3071.4,3070.9,6.656894]
[1720559548874,1.12813035,3071.8,3070.9,6.656894]
[1720559549078,0.1062539,3071.7,3070.9,6.656894]
[1720559549315,3.3,3071.9,3070.9,6.656894]
[1720559549316,1.23438135,3071.6,3070.9,6.656894]
[1720559549608,1.12813035,3071.5,3070.9,6.656894]
[1720559549771,1.12813035,3071.4,3070.9,6.656894]
[1720559549974,1.12813035,3071.7,3070.9,6.656894]
[1720559550576,1.12813035,3071.7,3070.9,4.157594]
[1720559550776,1.12813035,3071.7,3071.0,2.3852]
[1720559551584,0.10624574,3071.6,3071.0,2.3852]
[1720559551790,1.12813035,3071.5,3071.0,2.3852]
[1720559552310,1.12813035,3071.4,3071.0,2.3852]
[1720559552611,0.33,3071.8,3071.0,2.3852]
[1720559552775,1.73715328,3071.7,3071.0,2.3852]
[1720559552975,1.23440843,3071.6,3071.0,2.3852]
[1720559553181,1.12815908,3071.5,3071.0,2.3852]
[1720559553402,1.12815908,3071.4,3071.0,2.3852]
[1720559553611,1.12815908,3071.6,3071.0,2.3852]
[1720559553929,1.12815796,3071.5,3071.0,2.3852]
[1720559554216,1.12815796,3071.4,3071.0,2.3852]
[1720559554381,1.12815796,3071.6,3071.0,2.3852]
[1720559554581,1.23441159,3071.5,3071.0,2.3852]
[1720559554823,1.12815796,3071.4,3071.0,2.3852]
[1720559555008,1.12815796,3071.5,3071.0,2.3852]
[1720559555307,1.12815796,3071.4,3071.0,2.3852]
[1720559555520,1.69782067,3071.8,3071.0,2.3852]
[1720559555521,1.12819695,3071.3,3071.0,2.3852]
[1720559555686,3.16978207,3071.7,3071.0,2.3852]
[1720559555886,0.16978207,3071.7,3071.0,2.3852]
[1720559556111,1.23442447,3071.6,3071.0,2.3852]
[1720559556314,1.23442447,3071.5,3071.0,2.3852]
[1720559556546,1.12817641,3071.4,3071.0,2.3852]
[1720559556747,3.16978207,3071.7,3071.0,2.3852]
[1720559556748,1.12817641,3071.6,3071.0,2.3852]
[1720559556947,0.10624791,3071.5,3071.0,2.3852]
[1720559557130,1.12817641,3071.4,3071.0,2.3852]
[1720559559538,3.48283622,3071.9,3071.0,2.3852]
[1720559559838,4.23440684,3071.8,3071.0,2.3852]
[1720559560016,1.23440684,3071.7,3071.0,2.3852]
[1720559560223,1.23440684,3071.6,3071.0,2.949366]
[1720559560530,1.12816141,3071.5,3071.0,2.949366]
[1720559560712,1.12816141,3071.4,3071.0,2.3852]
[1720559560911,5.24842938,3071.9,3071.0,2.3852]
[1720559561152,1.23436375,3071.8,3071.0,2.3852]
[1720559561327,1.23436375,3071.7,3071.0,2.3852]
[1720559561521,1.12810608,3071.6,3071.0,2.3852]
[1720559561722,1.12810608,3071.5,3071.0,2.3852]
[1720559561935,1.12810608,3071.4,3071.0,2.3852]
[1720559562143,4.07484294,3071.9,3071.0,2.3852]
[1720559562376,1.23433571,3071.8,3071.0,2.949356]
[1720559562522,0.10625906,3071.7,3071.0,2.949356]
[1720559562724,1.12808404,3071.6,3071.0,2.949356]
[1720559563035,4.07484294,3071.9,3071.0,2.949356]
[1720559563221,1.23434062,3071.8,3071.0,2.949356]
[1720559563421,1.23434062,3071.7,3071.0,2.949356]
[1720559563752,1.12808432,3071.7,3071.0,2.949356]
[1720559564057,1.12808432,3071.6,3071.0,2.949356]
[1720559564258,1.12808432,3071.5,3071.0,2.3852]
[1720559564624,1.12808432,3071.4,3071.0,2.3852]
[1720559564818,1.12808432,3071.3,3071.0,2.3852]
[1720559565051,0.57731969,3071.8,3071.1,2.4131]
[1720559565254,1.12808085,3071.7,3071.1,2.47821823]
[1720559565552,1.12808085,3071.6,3071.3,2.4148]
[1720559565718,1.12808085,3071.5,3071.3,2.4148]
[1720559565925,3.0,3072.1,3071.3,2.4148]
[1720559566140,1.12800983,3071.4,3071.3,2.4148]
[1720559566527,1.12800983,3071.4,3071.3,5.67075]
[1720559566733,1.12800983,3071.4,3071.3,4.148623]
[1720559566955,1.12800983,3071.4,3071.3,6.525723]
[1720559568331,1.69764728,3072.4,3071.6,2.3771]
[1720559568537,1.23418871,3072.3,3071.7,2.3771]
[1720559568741,1.12794127,3072.2,3071.7,2.3771]
[1720559568966,1.12794127,3072.1,3071.7,2.3771]
[1720559569292,0.22476473,3072.4,3071.7,2.3771]
[1720559569446,1.23414933,3072.3,3071.7,2.3771]
[1720559569781,1.12789667,3072.2,3071.7,2.3771]
[1720559570081,0.22476473,3072.4,3071.7,2.3771]
[1720559570082,1.12789667,3072.1,3071.7,2.3771]
[1720559570365,1.12789667,3072.0,3071.7,2.3771]
[1720559570569,1.12789667,3072.3,3071.8,2.4038]
[1720559571965,1.12789667,3072.3,3071.9,2.2781]
[1720559572166,3.0,3072.6,3071.9,5.5334]
[1720559572167,1.12789667,3072.5,3071.9,5.5334]
[1720559572362,1.12789667,3072.4,3071.9,5.5334]
[1720559572539,1.12789667,3072.3,3071.9,5.5334]
[1720559572867,1.12789667,3072.2,3071.9,5.5334]